fUSD/lending_fUSD_20240104
["ID","MTS","AMOUNT","RATE_DAILY","PERIOD"]
[310192772,1704395445676,-500.0,0.0003315,2]
[310192774,1704395445686,-500.0,0.0003315,2]
[310192776,1704395445696,-2733.2,0.0003315,2]
[310192778,1704395445705,-500.0,0.0003315,2]
[310192780,1704395445715,-500.0,0.0003315,2]
[310192782,1704395445724,-3482.8,0.0003315,2]
[310192784,1704395445734,-500.0,0.0003315,2]
[310192785,1704395445743,-500.0,0.0003315,2]
[310192786,1704395445752,-500.0,0.0003315,2]
[310192787,1704395445762,-500.0,0.0003315,2]
[310192788,1704395445771,-500.0,0.0003315,2]
[310192789,1704395445781,-732.17,0.0003315,2]
[310192790,1704395445790,-1091.05,0.0003315,2]
[310192791,1704395445800,-2114.16,0.0003315,2]
[310192792,1704395445810,-500.0,0.0003315,2]
[310192793,1704395445819,-577.34,0.0003315,2]
[310192794,1704395445829,-500.0,0.0003315,2]
[310192795,1704395445840,-500.0,0.0003315,2]
[310192796,1704395445851,-500.0,0.0003315,2]
[310192797,1704395445861,-2557.25,0.0003315,2]
[310192798,1704395445871,-500.0,0.0003315,2]
[310192799,1704395445881,-500.0,0.0003315,2]
[310192800,1704395445892,-532.08,0.0003315,2]
[310192801,1704395445901,-1336.54,0.0003315,2]
[310192802,1704395445911,-500.0,0.0003315,2]
[310192803,1704395445921,-2652.71,0.0003315,2]
[310192804,1704395445931,-500.0,0.0003315,2]
[310192805,1704395445940,-1082.21,0.0003315,2]
[310192806,1704395445950,-570.57,0.0003315,2]
[310192807,1704395445959,-923.41,0.0003315,2]
[310192808,1704395445969,-500.0,0.0003315,2]
[310192809,1704395445978,-2276.52,0.0003315,2]
[310192810,1704395445988,-500.0,0.0003315,2]
[310192811,1704395445998,-500.0,0.0003315,2]
[310192812,1704395446010,-500.0,0.0003315,2]
[310192813,1704395446019,-686.69,0.0003315,2]
[310192814,1704395446029,-7321.98,0.0003315,2]
[310192815,1704395446039,-500.0,0.0003315,2]
[310192816,1704395446048,-1727.58,0.0003315,2]
[310192817,1704395446058,-500.0,0.0003315,2]
[310192818,1704395446067,-2271.65,0.0003315,2]
[310192819,1704395446077,-733.14,0.0003315,2]
[310192820,1704395446087,-500.0,0.0003315,2]
[310192821,1704395446097,-500.0,0.0003315,2]
[310192822,1704395446108,-2282.92,0.0003315,2]
[310192823,1704395446117,-500.0,0.0003315,2]
[310192824,1704395446127,-1413.73,0.0003315,2]
[310192825,1704395446137,-1947.79,0.0003315,2]
[310192826,1704395446202,-567.92,0.0003315,2]
[310192827,1704395446212,-500.0,0.0003315,2]
[310192828,1704395446223,-500.0,0.0003315,2]
[310192829,1704395446236,-500.0,0.0003315,2]
[310192830,1704395446245,-500.0,0.0003315,2]
[310192831,1704395446256,-4180.43,0.0003315,2]
[310192832,1704395446268,-500.0,0.0003315,2]
[310192833,1704395446279,-527.44,0.0003315,2]
[310192834,1704395446289,-500.0,0.0003315,2]
[310192835,1704395446301,-1287.29,0.0003315,2]
[310192836,1704395446313,-649.63,0.0003315,2]
[310192837,1704395446324,-673.21,0.0003315,2]
[310192838,1704395446334,-500.0,0.0003315,2]
[310192839,1704395446346,-500.0,0.0003315,2]
[310192840,1704395446355,-500.0,0.0003315,2]
[310192841,1704395446365,-500.0,0.0003315,2]
[310192842,1704395446376,-760.73,0.0003315,2]
[310192843,1704395446386,-252.3843287,0.0003315,2]
[310192844,1704395446396,-500.0,0.0003315,2]
[310192845,1704395446407,-500.0,0.0003315,2]
[310192846,1704395446417,-1131.3,0.0003315,2]
[310192847,1704395446426,-500.0,0.0003315,2]
[310192848,1704395446437,-500.0,0.0003315,2]
[310192849,1704395446447,-500.0,0.0003315,2]
[310192850,1704395446457,-500.0,0.0003315,2]
[310192851,1704395446467,-500.0,0.0003315,2]
[310192852,1704395446478,-1301.5,0.0003315,2]
[310192853,1704395446488,-500.0,0.0003315,2]
[310192854,1704395446497,-966.93,0.0003315,2]
[310192855,1704395446509,-767.71,0.0003315,2]
[310192856,1704395446520,-2224.59,0.0003315,2]
[310192857,1704395446530,-599.35150596,0.0003315,2]
[310192858,1704395446540,-601.14,0.0003315,2]
[310192859,1704395446551,-500.0,0.0003315,2]
[310192860,1704395446561,-996.88,0.0003315,2]
[310192861,1704395446571,-500.0,0.0003315,2]
[310192862,1704395446580,-1166.75,0.0003315,2]
[310192863,1704395446589,-5336.54,0.0003315,2]
[310192864,1704395446598,-792.9,0.0003315,2]
[310192865,1704395446608,-1019.44,0.0003315,2]
[310192866,1704395446617,-500.0,0.0003315,2]
[310192867,1704395446626,-500.0,0.0003315,2]
[310192868,1704395446638,-561.14,0.0003315,2]
[310192869,1704395446647,-804.87,0.0003315,2]
[310192870,1704395446658,-6607.68,0.0003315,2]
[310192871,1704395446668,-2923.77,0.0003315,2]
[310192872,1704395446678,-513.7,0.0003315,2]
[310192873,1704395446691,-500.0,0.0003315,2]
[310192874,1704395446702,-1870.97,0.0003315,2]
[310192875,1704395446712,-587.68,0.0003315,2]
[310192876,1704395446723,-500.0,0.0003315,2]
[310192877,1704395446733,-1728.16,0.0003315,2]
[310192878,1704395446743,-500.0,0.0003315,2]
[310192879,1704395446754,-708.91,0.0003315,2]
[310192880,1704395446765,-3044.41,0.0003315,2]
[310192881,1704395446774,-500.0,0.0003315,2]
[310192882,1704395446784,-500.0,0.0003315,2]
[310192883,1704395446794,-500.0,0.0003315,2]
[310192884,1704395446804,-500.0,0.0003315,2]
[310192885,1704395446814,-500.0,0.0003315,2]
[310192886,1704395446825,-1250.57,0.0003315,2]
[310192887,1704395446835,-500.0,0.0003315,2]
[310192888,1704395446845,-669.26,0.0003315,2]
[310192889,1704395446856,-500.0,0.0003315,2]
[310192890,1704395446866,-500.0,0.0003315,2]
[310192891,1704395446875,-500.0,0.0003315,2]
[310192892,1704395446886,-500.0,0.0003315,2]
[310192893,1704395446895,-602.81,0.0003315,2]
[310192894,1704395446905,-500.0,0.0003315,2]
[310192895,1704395446915,-500.0,0.0003315,2]
[310192896,1704395446925,-640.2,0.0003315,2]
[310192897,1704395446935,-725.02,0.0003315,2]
[310192898,1704395446944,-500.0,0.0003315,2]
[310192899,1704395446954,-4976.48,0.0003315,2]
[310192900,1704395446963,-758.41,0.0003315,2]
[310192901,1704395446974,-1594.66,0.0003315,2]
[310192902,1704395446983,-2205.19,0.0003315,2]
[310192903,1704395446993,-500.0,0.0003315,2]
[310192904,1704395447003,-1107.35,0.0003315,2]
[310192905,1704395447013,-560.12,0.0003315,2]
[310192906,1704395447023,-596.68,0.0003315,2]
[310192907,1704395447034,-1681.09,0.0003315,2]
[310192908,1704395447044,-1016.91,0.0003315,2]
[310192909,1704395447054,-500.0,0.0003315,2]
[310192910,1704395447065,-755.51,0.0003315,2]
[310192911,1704395447077,-500.0,0.0003315,2]
[310192912,1704395447087,-500.0,0.0003315,2]
[310192913,1704395447097,-657.82,0.0003315,2]
[310192914,1704395447107,-1231.31,0.0003315,2]
[310192915,1704395447116,-536.35,0.0003315,2]
[310192916,1704395447125,-500.0,0.0003315,2]
[310192917,1704395447135,-532.91,0.0003315,2]
[310192918,1704395447144,-500.0,0.0003315,2]
[310192919,1704395447153,-500.0,0.0003315,2]
[310192920,1704395447164,-1247.12,0.0003315,2]
[310192921,1704395447174,-500.0,0.0003315,2]
[310192922,1704395447185,-500.0,0.0003315,2]
[310192923,1704395447194,-500.0,0.0003315,2]
[310192924,1704395447205,-508.73,0.0003315,2]
[310192925,1704395447215,-500.0,0.0003315,2]
[310192926,1704395447224,-1676.15,0.0003315,2]
[310192927,1704395447235,-500.0,0.0003315,2]
[310192928,1704395447249,-500.0,0.0003315,2]
[310192929,1704395447259,-206.42691248,0.0003315,2]
[310192930,1704395447269,-500.0,0.0003315,2]
[310192931,1704395447279,-500.0,0.0003315,2]
[310192932,1704395447290,-1319.57,0.0003315,2]
[310192933,1704395447300,-1836.52,0.0003315,2]
[310192934,1704395447309,-500.0,0.0003315,2]
[310192935,1704395447320,-500.0,0.0003315,2]
[310192936,1704395447330,-805.67,0.0003315,2]
[310192937,1704395447340,-1680.66,0.0003315,2]
[310192938,1704395447350,-162.77,0.00033152,2]
[310192939,1704395447360,-151.21568173,0.00033155,2]
[310192940,1704395447370,-416.99,0.00033178,2]
[310192941,1704395447380,-500.0,0.00033323,2]
[310192942,1704395447391,-5000.0,0.00033324,2]
[310192943,1704395447401,-526.15794412,0.00033363,6]
[310192944,1704395447411,-416.99,0.00033378,2]
[310192945,1704395447421,-160.45516296,0.00033384,7]
[310192946,1704395447432,-500.0,0.00033384,7]
[310192947,1704395447442,-1955.0,0.000334,7]
[310192948,1704395447453,-1077.85,0.00033423,2]
[310192949,1704395447463,-500.0,0.00033423,2]
[310192950,1704395447474,-5801.51,0.00033423,2]
[310192951,1704395447487,-1092.64,0.00033423,2]
[310192952,1704395447498,-744.73,0.00033423,2]
[310192953,1704395447509,-1622.3,0.00033423,2]
[310192954,1704395447521,-2148.6,0.00033423,2]
[310192955,1704395447532,-1553.83,0.00033423,2]
[310192956,1704395447542,-1185.23,0.00033423,2]
[310192957,1704395447552,-500.0,0.00033423,2]
[310192958,1704395447563,-641.94,0.00033423,2]
[310192959,1704395447574,-500.0,0.00033423,2]
[310192960,1704395447584,-1138.12,0.00033423,2]
[310192961,1704395447594,-618.54,0.00033423,2]
[310192962,1704395447604,-3255.26,0.00033423,2]
[310192963,1704395447614,-758.96,0.00033423,2]
[310192964,1704395447625,-1309.54,0.00033423,2]
[310192965,1704395447638,-500.0,0.00033423,2]
[310192966,1704395447647,-500.0,0.00033423,2]
[310192967,1704395447658,-500.0,0.00033423,2]
[310192968,1704395447668,-500.0,0.00033423,2]
[310192969,1704395447678,-1855.81,0.00033423,2]
[310192970,1704395447687,-1078.37,0.00033423,2]
[310192971,1704395447698,-583.57,0.00033423,2]
[310192972,1704395447708,-500.0,0.00033423,2]
[310192973,1704395447717,-977.53,0.00033423,2]
[310192974,1704395447727,-947.88,0.00033423,2]
[310192975,1704395447737,-1236.46,0.00033423,2]
[310192976,1704395447747,-156.0,0.00033424,5]
[310192977,1704395447758,-500.0,0.00033424,2]
[310192978,1704395447769,-500.0,0.00033424,2]
[310192979,1704395447780,-500.0,0.00033424,2]
[310192980,1704395447789,-500.0,0.00033424,2]
[310192981,1704395447800,-554.53357098,0.00033424,2]
[310192982,1704395447810,-500.0,0.00033424,2]
[310192983,1704395447820,-500.0,0.00033424,2]
[310192984,1704395447830,-500.0,0.00033424,2]
[310192985,1704395447840,-500.0,0.00033424,2]
[310192986,1704395447850,-454.02761328,0.00033424,2]
[310192987,1704395447861,-446.32981625,0.00033424,2]
[310192988,1704395447871,-500.0,0.00033424,2]
[310192989,1704395447880,-500.0,0.00033424,2]
[310192990,1704395447890,-500.0,0.00033424,2]
[310192991,1704395447901,-199.93,0.00033424,2]
[310192992,1704395447911,-610.74358628,0.00033424,2]
[310192993,1704395447922,-500.0,0.00033424,2]
[310192994,1704395447932,-500.0,0.00033424,2]
[310192995,1704395447942,-500.0,0.00033424,2]
[310192996,1704395447951,-500.0,0.00033424,2]
[310192997,1704395447961,-500.0,0.00033424,2]
[310192998,1704395447971,-500.0,0.00033424,2]
[310192999,1704395447981,-500.0,0.00033424,2]
[310193000,1704395447991,-500.0,0.00033424,2]
[310193001,1704395448001,-500.0,0.00033424,2]
[310193002,1704395448011,-500.0,0.00033424,2]
[310193003,1704395448021,-500.0,0.00033424,2]
[310193004,1704395448031,-500.0,0.00033424,2]
[310193005,1704395448042,-500.0,0.00033424,2]
[310193006,1704395448051,-500.0,0.00033424,2]
[310193007,1704395448061,-500.0,0.00033424,2]
[310193008,1704395448070,-500.0,0.00033424,2]
[310193009,1704395448080,-500.0,0.00033424,2]
[310193010,1704395448089,-500.0,0.00033424,2]
[310193011,1704395448100,-500.0,0.00033424,2]
[310193012,1704395448109,-500.0,0.00033424,2]
[310193013,1704395448119,-500.0,0.00033424,2]
[310193014,1704395448129,-500.0,0.00033424,2]
[310193015,1704395448141,-500.0,0.00033424,2]
[310193016,1704395448150,-500.0,0.00033424,2]
[310193017,1704395448160,-516.40510245,0.00033424,2]
[310193018,1704395448170,-500.0,0.00033424,2]
[310193019,1704395448180,-500.0,0.00033424,2]
[310193020,1704395448190,-500.0,0.00033424,2]
[310193021,1704395448202,-500.0,0.00033424,2]
[310193022,1704395448213,-500.0,0.00033424,2]
[310193023,1704395448225,-500.0,0.00033424,2]
[310193024,1704395448239,-517.02067468,0.00033424,2]
[310193025,1704395448248,-500.0,0.00033424,2]
[310193026,1704395448258,-500.0,0.00033424,2]
[310193027,1704395448270,-500.0,0.00033424,2]
[310193028,1704395448282,-500.0,0.00033424,2]
[310193029,1704395448292,-500.0,0.00033424,2]
[310193030,1704395448302,-500.0,0.00033424,2]
[310193031,1704395448312,-500.0,0.00033424,2]
[310193032,1704395448323,-500.0,0.00033424,2]
[310193033,1704395448334,-500.0,0.00033424,2]
[310193034,1704395448346,-500.0,0.00033424,2]
[310193035,1704395448355,-500.0,0.00033424,2]
[310193036,1704395448365,-336.65407559,0.00033424,2]
[310193037,1704395448375,-500.0,0.00033424,2]
[310193038,1704395448384,-500.0,0.00033424,2]
[310193039,1704395448393,-500.0,0.00033424,2]
[310193040,1704395448404,-500.0,0.00033424,2]
[310193041,1704395448414,-500.0,0.00033424,2]
[310193042,1704395448424,-610.58232541,0.00033424,2]
[310193043,1704395448433,-500.0,0.00033424,2]
[310193044,1704395448443,-500.0,0.00033424,2]
[310193045,1704395448453,-500.0,0.00033424,2]
[310193046,1704395448463,-500.0,0.00033424,2]
[310193047,1704395448473,-527.94637848,0.00033424,2]
[310193048,1704395448484,-437.70255327,0.00033424,2]
[310193049,1704395448494,-500.0,0.00033424,2]
[310193050,1704395448505,-500.0,0.00033424,2]
[310193051,1704395448514,-500.0,0.00033424,2]
[310193052,1704395448523,-500.0,0.00033424,2]
[310193053,1704395448532,-500.0,0.00033424,2]
[310193054,1704395448541,-500.0,0.00033424,2]
[310193055,1704395448550,-500.0,0.00033424,2]
[310193056,1704395448560,-500.0,0.00033424,2]
[310193057,1704395448569,-500.0,0.00033424,2]
[310193058,1704395448580,-500.0,0.00033424,2]
[310193059,1704395448589,-500.0,0.00033424,2]
[310193060,1704395448598,-500.0,0.00033424,2]
[310193061,1704395448607,-500.0,0.00033424,2]
[310193062,1704395448618,-500.0,0.00033424,2]
[310193063,1704395448628,-500.0,0.00033424,2]
[310193064,1704395448639,-500.0,0.00033424,2]
[310193065,1704395448648,-500.0,0.00033424,2]
[310193066,1704395448657,-500.0,0.00033424,2]
[310193067,1704395448668,-500.0,0.00033424,2]
[310193068,1704395448677,-500.0,0.00033424,2]
[310193069,1704395448687,-500.0,0.00033424,2]
[310193070,1704395448697,-500.0,0.00033424,2]
[310193071,1704395448705,-500.0,0.00033424,2]
[310193072,1704395448715,-513.75926975,0.00033424,2]
[310193073,1704395448724,-500.0,0.00033424,2]
[310193074,1704395448735,-500.0,0.00033424,2]
[310193075,1704395448745,-500.0,0.00033424,2]
[310193076,1704395448754,-500.0,0.00033424,2]
[310193077,1704395448763,-500.0,0.00033424,2]
[310193078,1704395448772,-512.37136541,0.00033424,2]
[310193079,1704395448782,-500.0,0.00033424,2]
[310193080,1704395448792,-500.0,0.00033424,2]
[310193081,1704395448801,-500.0,0.00033424,2]
[310193082,1704395448811,-500.0,0.00033424,2]
[310193083,1704395448820,-500.0,0.00033424,2]
[310193084,1704395448829,-500.0,0.00033424,2]
[310193085,1704395448839,-307.34907554,0.00033424,2]
[310193086,1704395448850,-500.0,0.00033424,2]
[310193087,1704395448859,-500.0,0.00033424,2]
[310193088,1704395448868,-500.0,0.00033424,2]
[310193089,1704395448877,-500.0,0.00033424,2]
[310193090,1704395448886,-500.0,0.00033424,2]
[310193091,1704395448896,-500.0,0.00033424,2]
[310193092,1704395448905,-509.7841571,0.00033424,2]
[310193093,1704395448914,-500.0,0.00033424,2]
[310193094,1704395448923,-500.0,0.00033424,2]
[310193095,1704395448933,-500.0,0.00033424,2]
[310193096,1704395448942,-514.58,0.00033424,2]
[310193097,1704395448952,-500.0,0.00033424,2]
[310193098,1704395448961,-500.0,0.00033424,2]
[310193099,1704395448970,-500.0,0.00033424,2]
[310193100,1704395448979,-500.0,0.00033424,2]
[310193101,1704395448989,-500.0,0.00033424,2]
[310193102,1704395448998,-500.0,0.00033424,2]
[310193103,1704395449008,-500.0,0.00033424,2]
[310193104,1704395449017,-500.0,0.00033424,2]
[310193105,1704395449028,-500.0,0.00033424,2]
[310193106,1704395449038,-500.0,0.00033424,2]
[310193107,1704395449047,-515.01094805,0.00033424,2]
[310193108,1704395449057,-500.0,0.00033424,2]
[310193109,1704395449066,-500.0,0.00033424,2]
[310193110,1704395449075,-500.0,0.00033424,2]
[310193111,1704395449085,-500.0,0.00033424,2]
[310193112,1704395449095,-500.0,0.00033424,2]
[310193113,1704395449106,-500.0,0.00033424,2]
[310193114,1704395449116,-500.0,0.00033424,2]
[310193115,1704395449126,-500.0,0.00033424,2]
[310193116,1704395449136,-500.0,0.00033424,2]
[310193117,1704395449145,-770.93,0.00033424,2]
[310193118,1704395449155,-505.78,0.00033424,2]
[310193119,1704395449166,-500.0,0.00033424,2]
[310193120,1704395449176,-500.0,0.00033424,2]
[310193121,1704395449186,-2733.2,0.00033424,2]
[310193122,1704395449196,-500.0,0.00033424,2]
[310193123,1704395449206,-500.0,0.00033424,2]
[310193124,1704395449216,-3482.8,0.00033424,2]
[310193125,1704395449226,-500.0,0.00033424,2]
[310193126,1704395449236,-500.0,0.00033424,2]
[310193127,1704395449246,-500.0,0.00033424,2]
[310193128,1704395449257,-500.0,0.00033424,2]
[310193129,1704395449267,-732.17,0.00033424,2]
[310193130,1704395449276,-1091.05,0.00033424,2]
[310193131,1704395449286,-2114.16,0.00033424,2]
[310193132,1704395449295,-577.34,0.00033424,2]
[310193133,1704395449305,-500.0,0.00033424,2]
[310193134,1704395449314,-500.0,0.00033424,2]
[310193135,1704395449323,-2557.25,0.00033424,2]
[310193136,1704395449332,-500.0,0.00033424,2]
[310193137,1704395449342,-532.08,0.00033424,2]
[310193138,1704395449352,-1336.54,0.00033424,2]
[310193139,1704395449362,-500.0,0.00033424,2]
[310193140,1704395449372,-2652.71,0.00033424,2]
[310193141,1704395449381,-500.0,0.00033424,2]
[310193142,1704395449390,-1082.21,0.00033424,2]
[310193143,1704395449400,-570.57,0.00033424,2]
[310193144,1704395449410,-923.41,0.00033424,2]
[310193145,1704395449419,-500.0,0.00033424,2]
[310193146,1704395449428,-2276.52,0.00033424,2]
[310193147,1704395449437,-500.0,0.00033424,2]
[310193148,1704395449446,-500.0,0.00033424,2]
[310193149,1704395449456,-686.69,0.00033424,2]
[310193150,1704395449466,-7321.98,0.00033424,2]
[310193151,1704395449475,-500.0,0.00033424,2]
[310193152,1704395449484,-1727.58,0.00033424,2]
[310193153,1704395449494,-500.0,0.00033424,2]
[310193154,1704395449503,-2271.65,0.00033424,2]
[310193155,1704395449513,-733.14,0.00033424,2]
[310193156,1704395449522,-500.0,0.00033424,2]
[310193157,1704395449531,-500.0,0.00033424,2]
[310193158,1704395449541,-2282.92,0.00033424,2]
[310193159,1704395449550,-500.0,0.00033424,2]
[310193160,1704395449559,-1413.73,0.00033424,2]
[310193161,1704395449568,-1947.79,0.00033424,2]
[310193162,1704395449578,-567.92,0.00033424,2]
[310193163,1704395449587,-500.0,0.00033424,2]
[310193164,1704395449597,-500.0,0.00033424,2]
[310193165,1704395449606,-500.0,0.00033424,2]
[310193166,1704395449615,-4180.43,0.00033424,2]
[310193167,1704395449625,-527.44,0.00033424,2]
[310193168,1704395449635,-500.0,0.00033424,2]
[310193169,1704395449644,-1287.29,0.00033424,2]
[310193170,1704395449655,-649.63,0.00033424,2]
[310193171,1704395449665,-673.21,0.00033424,2]
[310193172,1704395449675,-500.0,0.00033424,2]
[310193173,1704395449685,-500.0,0.00033424,2]
[310193174,1704395449694,-500.0,0.00033424,2]
[310193175,1704395449706,-500.0,0.00033424,2]
[310193176,1704395449717,-760.73,0.00033424,2]
[310193177,1704395449726,-500.0,0.00033424,2]
[310193178,1704395449738,-500.0,0.00033424,2]
[310193179,1704395449748,-1131.3,0.00033424,2]
[310193180,1704395449759,-207.3,0.00033424,2]
[310193181,1704395449769,-500.0,0.00033424,2]
[310193182,1704395449781,-500.0,0.00033424,2]
[310193183,1704395449790,-500.0,0.00033424,2]
[310193184,1704395449800,-1301.5,0.00033424,2]
[310193185,1704395449810,-500.0,0.00033424,2]
[310193186,1704395449819,-966.93,0.00033424,2]
[310193187,1704395449829,-767.71,0.00033424,2]
[310193188,1704395449839,-2224.59,0.00033424,2]
[310193189,1704395449853,-601.14,0.00033424,2]
[310193190,1704395449862,-560.91533327,0.00033424,2]
[310193191,1704395449873,-996.88,0.00033424,2]
[310193192,1704395449884,-500.0,0.00033424,2]
[310193193,1704395449894,-1166.75,0.00033424,2]
[310193194,1704395449904,-5336.54,0.00033424,2]
[310193195,1704395449915,-792.9,0.00033424,2]
[310193196,1704395449925,-1019.44,0.00033424,2]
[310193197,1704395449935,-500.0,0.00033424,2]
[310193198,1704395449944,-500.0,0.00033424,2]
[310193199,1704395449955,-561.14,0.00033424,2]
[310193200,1704395449964,-804.87,0.00033424,2]
[310193201,1704395449974,-6607.68,0.00033424,2]
[310193202,1704395449984,-2923.77,0.00033424,2]
[310193203,1704395449995,-513.7,0.00033424,2]
[310193204,1704395450005,-1870.97,0.00033424,2]
[310193205,1704395450017,-587.68,0.00033424,2]
[310193206,1704395450026,-500.0,0.00033424,2]
[310193207,1704395450035,-1728.16,0.00033424,2]
[310193208,1704395450045,-500.0,0.00033424,2]
[310193209,1704395450055,-708.91,0.00033424,2]
[310193210,1704395450065,-3044.41,0.00033424,2]
[310193211,1704395450074,-500.0,0.00033424,2]
[310193212,1704395450084,-500.0,0.00033424,2]
[310193213,1704395450094,-500.0,0.00033424,2]
[310193214,1704395450103,-500.0,0.00033424,2]
[310193215,1704395450113,-500.0,0.00033424,2]
[310193216,1704395450122,-1250.57,0.00033424,2]
[310193217,1704395450131,-500.0,0.00033424,2]
[310193218,1704395450141,-669.26,0.00033424,2]
[310193219,1704395450150,-500.0,0.00033424,2]
[310193220,1704395450160,-500.0,0.00033424,2]
[310193221,1704395450170,-500.0,0.00033424,2]
[310193222,1704395450180,-500.0,0.00033424,2]
[310193223,1704395450190,-602.81,0.00033424,2]
[310193224,1704395450200,-500.0,0.00033424,2]
[310193225,1704395450210,-500.0,0.00033424,2]
[310193226,1704395450220,-640.2,0.00033424,2]
[310193227,1704395450230,-725.02,0.00033424,2]
[310193228,1704395450241,-500.0,0.00033424,2]
[310193229,1704395450254,-4976.48,0.00033424,2]
[310193230,1704395450264,-758.41,0.00033424,2]
[310193231,1704395450274,-1594.66,0.00033424,2]
[310193232,1704395450284,-2205.19,0.00033424,2]
[310193233,1704395450294,-500.0,0.00033424,2]
[310193234,1704395450304,-1107.35,0.00033424,2]
[310193235,1704395450314,-560.12,0.00033424,2]
[310193236,1704395450323,-596.68,0.00033424,2]
[310193237,1704395450334,-1681.09,0.00033424,2]
[310193238,1704395450345,-1016.91,0.00033424,2]
[310193239,1704395450355,-500.0,0.00033424,2]
[310193240,1704395450364,-755.51,0.00033424,2]
[310193241,1704395450374,-500.0,0.00033424,2]
[310193242,1704395450384,-500.0,0.00033424,2]
[310193243,1704395450394,-657.82,0.00033424,2]
[310193244,1704395450403,-1231.31,0.00033424,2]
[310193245,1704395450413,-536.35,0.00033424,2]
[310193246,1704395450422,-500.0,0.00033424,2]
[310193247,1704395450432,-532.91,0.00033424,2]
[310193248,1704395450442,-500.0,0.00033424,2]
[310193249,1704395450452,-500.0,0.00033424,2]
[310193250,1704395450462,-1247.12,0.00033424,2]
[310193251,1704395450471,-500.0,0.00033424,2]
[310193252,1704395450481,-500.0,0.00033424,2]
[310193253,1704395450491,-500.0,0.00033424,2]
[310193254,1704395450501,-508.73,0.00033424,2]
[310193255,1704395450510,-500.0,0.00033424,2]
[310193256,1704395450520,-1676.15,0.00033424,2]
[310193257,1704395450530,-500.0,0.00033424,2]
[310193258,1704395450540,-500.0,0.00033424,2]
[310193259,1704395450549,-231.98,0.00033424,2]
[310193260,1704395450559,-500.0,0.00033424,2]
[310193261,1704395450569,-1319.57,0.00033424,2]
[310193262,1704395450578,-1836.52,0.00033424,2]
[310193263,1704395450588,-500.0,0.00033424,2]
[310193264,1704395450599,-500.0,0.00033424,2]
[310193265,1704395450609,-805.67,0.00033424,2]
[310193266,1704395450618,-1680.66,0.00033424,2]
[310193267,1704395450629,-938.08,0.00033425,2]
[310193268,1704395450639,-207.0,0.00033468,8]
[310193269,1704395450648,-153.2,0.000335,2]
[310193270,1704395450658,-153.2,0.000335,2]
[310193271,1704395450668,-153.2,0.000335,2]
[310193272,1704395450678,-153.2,0.000335,2]
[310193273,1704395450688,-151.69832518,0.00033598,2]
[310193274,1704395450698,-385.476,0.00033601,2]
[310193275,1704395450709,-833.0,0.00033601,2]
[310193276,1704395450719,-943.0,0.00033601,2]
[310193277,1704395450730,-1846.0,0.00033601,2]